[Event "*** Titled Tuesday Blitz"]
[Site "Chess.com"]
[Date "2018.01.02"]
[Round "2"]
[White "pedromartinez91"]
[Black "aquiles88"]
[Result "1-0"]
[WhiteElo "2215"]
[BlackElo "2056"]
[TimeControl "180+2"]
[EndTime "13:20:53 PST"]
[Termination "pedromartinez91 won by resignation"]

1. e4 {[%clk 0:03:01.9]} 1... Nf6 {[%clk 0:02:57.6]} 2. e5 {[%clk 0:02:59.4]}
2... Nd5 {[%clk 0:02:58.1]} 3. d4 {[%clk 0:02:47.1]} 3... d6 {[%clk 0:02:58.5]}
4. f4 {[%clk 0:02:46.9]} 4... dxe5 {[%clk 0:02:58.7]} 5. fxe5 {[%clk 0:02:47.8]}
5... Bf5 {[%clk 0:02:59.1]} 6. Nf3 {[%clk 0:02:35.7]} 6... e6 {[%clk 0:02:58.4]}
7. Nc3 {[%clk 0:02:26.4]} 7... Nb4 {[%clk 0:02:54.7]} 8. Bb5+ {[%clk 0:02:25.1]}
8... c6 {[%clk 0:02:51.2]} 9. Ba4 {[%clk 0:02:26.2]} 9... Be7 {[%clk 0:02:31]}
10. O-O {[%clk 0:02:25.6]} 10... O-O {[%clk 0:02:27.8]} 11. Bb3 {[%clk
0:02:19.8]} 11... c5 {[%clk 0:02:17]} 12. a3 {[%clk 0:01:40.2]} 12... cxd4
{[%clk 0:02:13.1]} 13. Nxd4 {[%clk 0:01:31.4]} 13... Bc5 {[%clk 0:02:11.7]} 14.
Be3 {[%clk 0:01:30.6]} 14... N4c6 {[%clk 0:02:09.3]} 15. Nxf5 {[%clk 0:01:29.1]}
15... Bxe3+ {[%clk 0:01:45.4]} 16. Nxe3 {[%clk 0:01:28.5]} 16... Qb6 {[%clk
0:01:42.2]} 17. Qe2 {[%clk 0:01:17.6]} 17... Nxe5 {[%clk 0:01:40.1]} 18. Kh1
{[%clk 0:01:18]} 18... Nbc6 {[%clk 0:01:38.7]} 19. Nc4 {[%clk 0:01:13.9]} 19...
Nxc4 {[%clk 0:01:38.8]} 20. Qxc4 {[%clk 0:01:13.4]} 20... Na5 {[%clk 0:01:35.3]}
21. Qb4 {[%clk 0:01:11.9]} 21... Qxb4 {[%clk 0:01:35.5]} 22. axb4 {[%clk
0:01:12.6]} 22... Nxb3 {[%clk 0:01:36.2]} 23. cxb3 {[%clk 0:01:14.5]} 23... a6
{[%clk 0:01:32.4]} 24. b5 {[%clk 0:01:16.4]} 24... axb5 {[%clk 0:01:33.2]} 25.
Nxb5 {[%clk 0:01:17.6]} 25... Rac8 {[%clk 0:01:30.2]} 26. Rfc1 {[%clk 0:01:18]}
26... h6 {[%clk 0:01:28]} 27. h3 {[%clk 0:01:19]} 27... Rxc1+ {[%clk 0:01:23.4]}
28. Rxc1 {[%clk 0:01:18.7]} 28... Rd8 {[%clk 0:01:25.3]} 29. Rc7 {[%clk
0:01:15.5]} 29... b6 {[%clk 0:01:23.4]} 30. Rb7 {[%clk 0:01:12.9]} 30... Rd1+
{[%clk 0:01:23.3]} 31. Kh2 {[%clk 0:01:13.6]} 31... Rb1 {[%clk 0:01:25.2]} 32.
Rxb6 {[%clk 0:01:14.8]} 32... Rxb2 {[%clk 0:01:25.9]} 33. Nd6 {[%clk 0:01:14.2]}
33... f6 {[%clk 0:01:23.2]} 34. b4 {[%clk 0:01:15.2]} 34... e5 {[%clk 0:01:24]}
35. b5 {[%clk 0:01:16.2]} 35... Re2 {[%clk 0:01:18.4]} 36. Rb8+ {[%clk
0:01:16.8]} 36... Kh7 {[%clk 0:01:18.9]} 37. b6 {[%clk 0:01:18]} 37... Rd2
{[%clk 0:01:16.6]} 38. b7 {[%clk 0:01:19.2]} 38... Rxd6 {[%clk 0:01:14.9]} 39.
Rh8+ {[%clk 0:01:19.8]} 1-0

[Event "*** Titled Tuesday Blitz"]
[Site "Chess.com"]
[Date "2018.01.02"]
[Round "2"]
[White "JammyDodger91"]
[Black "LazarusIcarus"]
[Result "1-0"]
[WhiteElo "2381"]
[BlackElo "2216"]
[TimeControl "180+2"]
[EndTime "13:21:03 PST"]
[Termination "JammyDodger91 won by resignation"]

1. e4 {[%clk 0:03:01.9]} 1... e5 {[%clk 0:02:59.2]} 2. Nf3 {[%clk 0:03:02.9]}
2... Nc6 {[%clk 0:02:59.9]} 3. Bb5 {[%clk 0:03:04.3]} 3... a6 {[%clk 0:03:00.4]}
4. Ba4 {[%clk 0:03:05.3]} 4... Nf6 {[%clk 0:03:01.6]} 5. O-O {[%clk 0:03:06.1]}
5... b5 {[%clk 0:02:58.2]} 6. Bb3 {[%clk 0:03:07.1]} 6... Bb7 {[%clk 0:02:59.6]}
7. d3 {[%clk 0:03:04.2]} 7... Bc5 {[%clk 0:02:57.2]} 8. c3 {[%clk 0:03:05]} 8...
O-O {[%clk 0:02:56.3]} 9. Bg5 {[%clk 0:03:05.7]} 9... h6 {[%clk 0:02:50.7]} 10.
Bh4 {[%clk 0:03:06.8]} 10... d6 {[%clk 0:02:51.4]} 11. Nbd2 {[%clk 0:03:05.6]}
11... Bb6 {[%clk 0:02:39.1]} 12. Re1 {[%clk 0:03:04.8]} 12... Qe7 {[%clk
0:02:38]} 13. Nf1 {[%clk 0:03:05.8]} 13... g5 {[%clk 0:02:11.9]} 14. Bg3 {[%clk
0:03:04.9]} 14... Ne8 {[%clk 0:02:00.8]} 15. Ne3 {[%clk 0:02:57]} 15... Nd8
{[%clk 0:01:59.5]} 16. Nf5 {[%clk 0:02:54.1]} 16... Qf6 {[%clk 0:02:00.3]} 17.
h4 {[%clk 0:02:54.2]} 17... Ne6 {[%clk 0:01:49.2]} 18. hxg5 {[%clk 0:02:52]}
18... hxg5 {[%clk 0:01:49.9]} 19. d4 {[%clk 0:02:41.3]} 19... Nf4 {[%clk
0:01:40.6]} 20. Nh2 {[%clk 0:02:18.1]} 20... Ng7 {[%clk 0:01:10]} 21. Ng4 {[%clk
0:02:11.8]} 21... Qd8 {[%clk 0:01:10.9]} 22. Nfh6+ {[%clk 0:01:42.9]} 22... Kh8
{[%clk 0:01:10.1]} 23. dxe5 {[%clk 0:01:37.2]} 23... dxe5 {[%clk 0:01:02]} 24.
Qxd8 {[%clk 0:01:35.8]} 24... Raxd8 {[%clk 0:01:01.9]} 25. Nxf7+ {[%clk
0:01:36.7]} 25... Rxf7 {[%clk 0:01:03.1]} 26. Bxf7 {[%clk 0:01:38.4]} 26... Rf8
{[%clk 0:01:02.9]} 27. Bb3 {[%clk 0:01:34.4]} 27... Ngh5 {[%clk 0:01:02.9]} 28.
Kh2 {[%clk 0:01:12.6]} 28... Nd3 {[%clk 0:00:49.4]} 29. Nxe5 {[%clk 0:01:10]}
29... Nxf2 {[%clk 0:00:32.9]} 30. Ng6+ {[%clk 0:01:00.6]} 30... Kg7 {[%clk
0:00:33.6]} 31. Nxf8 {[%clk 0:01:02.2]} 31... Ng4+ {[%clk 0:00:34.8]} 32. Kh3
{[%clk 0:01:00.3]} 32... Bc8 {[%clk 0:00:31.3]} 33. Be6 {[%clk 0:01:01.2]} 1-0

[Event "*** Titled Tuesday Blitz"]
[Site "Chess.com"]
[Date "2018.01.02"]
[Round "2"]
[White "luisgui16"]
[Black "GM_Huschenbeth"]
[Result "0-1"]
[WhiteElo "2248"]
[BlackElo "2412"]
[TimeControl "180+2"]
[EndTime "13:21:06 PST"]
[Termination "GM_Huschenbeth won by resignation"]

1. e4 {[%clk 0:03:01.9]} 1... c5 {[%clk 0:03:00.7]} 2. Nf3 {[%clk 0:03:02.3]}
2... d6 {[%clk 0:03:02.2]} 3. d4 {[%clk 0:03:03]} 3... cxd4 {[%clk 0:03:04.1]}
4. Nxd4 {[%clk 0:03:04.6]} 4... Nf6 {[%clk 0:03:05.9]} 5. Nc3 {[%clk 0:03:06]}
5... a6 {[%clk 0:03:07.5]} 6. Bg5 {[%clk 0:03:07.6]} 6... Nbd7 {[%clk
0:03:07.6]} 7. f4 {[%clk 0:03:08.5]} 7... Qa5 {[%clk 0:03:04.8]} 8. Qf3 {[%clk
0:02:59.2]} 8... h6 {[%clk 0:03:05.4]} 9. Bh4 {[%clk 0:02:28.3]} 9... e5 {[%clk
0:03:04.6]} 10. Nb3 {[%clk 0:02:27]} 10... Qc7 {[%clk 0:03:04.8]} 11. f5 {[%clk
0:02:23.4]} 11... b5 {[%clk 0:03:03.4]} 12. Bd3 {[%clk 0:02:08.4]} 12... Bb7
{[%clk 0:03:04.2]} 13. O-O-O {[%clk 0:02:07.2]} 13... b4 {[%clk 0:03:03.7]} 14.
Nb1 {[%clk 0:02:02.8]} 14... a5 {[%clk 0:02:54]} 15. Rhe1 {[%clk 0:01:47.1]}
15... a4 {[%clk 0:02:54.6]} 16. N3d2 {[%clk 0:01:48.3]} 16... Be7 {[%clk
0:02:27.3]} 17. Nc4 {[%clk 0:01:37.1]} 17... d5 {[%clk 0:02:19.9]} 18. exd5
{[%clk 0:01:12.5]} 18... Bxd5 {[%clk 0:02:21.8]} 19. Qe2 {[%clk 0:00:54.8]}
19... e4 {[%clk 0:02:09.7]} 20. Nbd2 {[%clk 0:00:55.2]} 20... O-O {[%clk
0:01:48.7]} 21. Bg3 {[%clk 0:00:47]} 21... exd3 {[%clk 0:01:16.1]} 22. Qxe7
{[%clk 0:00:38.8]} 22... Qc6 {[%clk 0:01:13.7]} 23. cxd3 {[%clk 0:00:20.8]}
23... Nc5 {[%clk 0:01:09.9]} 24. Kb1 {[%clk 0:00:17.9]} 24... Nxd3 {[%clk
0:01:09.5]} 25. Ne5 {[%clk 0:00:19.2]} 25... Qb5 {[%clk 0:00:59.1]} 26. Nxd3
{[%clk 0:00:15.5]} 26... Qxd3+ {[%clk 0:01:01]} 27. Ka1 {[%clk 0:00:17.2]} 27...
a3 {[%clk 0:01:02.4]} 28. Nb3 {[%clk 0:00:03.8]} 28... axb2+ {[%clk 0:01:02.8]}
29. Kxb2 {[%clk 0:00:05.1]} 29... Rxa2+ {[%clk 0:01:03.5]} 0-1

[Event "*** Titled Tuesday Blitz"]
[Site "Chess.com"]
[Date "2018.01.02"]
[Round "2"]
[White "ftorodent"]
[Black "mokerslag"]
[Result "1-0"]
[WhiteElo "2465"]
[BlackElo "2354"]
[TimeControl "180+2"]
[EndTime "13:21:20 PST"]
[Termination "ftorodent won by resignation"]

1. d4 {[%clk 0:03:01.9]} 1... Nf6 {[%clk 0:03:00.5]} 2. c4 {[%clk 0:03:02.3]}
2... g6 {[%clk 0:03:01.6]} 3. Nc3 {[%clk 0:03:02.1]} 3... Bg7 {[%clk 0:03:03]}
4. e4 {[%clk 0:03:02.9]} 4... d6 {[%clk 0:03:04.3]} 5. g3 {[%clk 0:03:03.8]}
5... O-O {[%clk 0:03:05.3]} 6. Bg2 {[%clk 0:03:04.9]} 6... Nc6 {[%clk
0:03:06.5]} 7. Nge2 {[%clk 0:03:03.8]} 7... a6 {[%clk 0:03:07.6]} 8. O-O {[%clk
0:03:04.4]} 8... Rb8 {[%clk 0:03:09]} 9. f4 {[%clk 0:02:58.4]} 9... e5 {[%clk
0:03:06.8]} 10. d5 {[%clk 0:02:57]} 10... Na5 {[%clk 0:03:00.7]} 11. fxe5 {[%clk
0:02:44.2]} 11... dxe5 {[%clk 0:03:01.7]} 12. c5 {[%clk 0:02:45]} 12... b6
{[%clk 0:02:44.8]} 13. b4 {[%clk 0:02:39.2]} 13... Nc4 {[%clk 0:02:44.7]} 14.
Qd3 {[%clk 0:02:38.7]} 14... b5 {[%clk 0:02:41.6]} 15. a4 {[%clk 0:02:33.6]}
15... c6 {[%clk 0:02:37.4]} 16. axb5 {[%clk 0:02:33.4]} 16... axb5 {[%clk
0:02:38.3]} 17. h3 {[%clk 0:02:07.2]} 17... Bd7 {[%clk 0:02:36.3]} 18. Qf3
{[%clk 0:02:00.4]} 18... h6 {[%clk 0:02:31.9]} 19. Rd1 {[%clk 0:01:56.7]} 19...
Qc8 {[%clk 0:02:29.7]} 20. dxc6 {[%clk 0:01:53]} 20... Bxc6 {[%clk 0:02:23.2]}
21. Ra7 {[%clk 0:01:48.5]} 21... Ra8 {[%clk 0:02:11.9]} 22. Rxa8 {[%clk
0:01:48.2]} 22... Qxa8 {[%clk 0:02:13.8]} 23. Nd5 {[%clk 0:01:49.2]} 23... Bxd5
{[%clk 0:02:06.6]} 24. exd5 {[%clk 0:01:49.7]} 24... e4 {[%clk 0:02:07.9]} 25.
Qb3 {[%clk 0:01:43.7]} 25... Nxd5 {[%clk 0:01:27.4]} 26. Bxe4 {[%clk 0:01:43]}
26... Rd8 {[%clk 0:01:28.2]} 27. Nf4 {[%clk 0:01:38]} 27... Nc3 {[%clk
0:01:28.6]} 28. Bxa8 {[%clk 0:01:34.2]} 28... Rxd1+ {[%clk 0:01:29.5]} 29. Qxd1
{[%clk 0:01:35.1]} 29... Nxd1 {[%clk 0:01:30.2]} 30. c6 {[%clk 0:01:27.6]} 30...
Nb6 {[%clk 0:01:20.9]} 31. c7 {[%clk 0:01:23.8]} 31... Be5 {[%clk 0:01:20.5]}
32. Nd5 {[%clk 0:01:24.7]} 32... Nc3 {[%clk 0:01:00.1]} 33. Nxb6 {[%clk
0:01:16.6]} 33... Bxc7 {[%clk 0:00:43.7]} 34. Nd5 {[%clk 0:01:14.4]} 34... Be5
{[%clk 0:00:37.3]} 35. Nxc3 {[%clk 0:01:12.7]} 35... Bxc3 {[%clk 0:00:39.2]} 36.
Ba3 {[%clk 0:01:14]} 36... Be5 {[%clk 0:00:35.2]} 37. Kg2 {[%clk 0:01:14.4]}
37... f5 {[%clk 0:00:35.7]} 38. Bc6 {[%clk 0:01:15.2]} 38... f4 {[%clk 0:00:37]}
39. gxf4 {[%clk 0:01:15.2]} 39... Bxf4 {[%clk 0:00:38.9]} 40. Bxb5 {[%clk
0:01:16.2]} 1-0

[Event "*** Titled Tuesday Blitz"]
[Site "Chess.com"]
[Date "2018.01.02"]
[Round "2"]
[White "BillForster"]
[Black "JordiQC"]
[Result "1/2-1/2"]
[WhiteElo "1516"]
[BlackElo "1853"]
[TimeControl "180+2"]
[EndTime "13:21:20 PST"]
[Termination "Game drawn by agreement"]

1. d4 {[%clk 0:03:01.9]} 1... d5 {[%clk 0:02:59.9]} 2. c4 {[%clk 0:03:01.4]}
2... c6 {[%clk 0:03:00.8]} 3. Nc3 {[%clk 0:03:00.2]} 3... Nf6 {[%clk 0:03:00.8]}
4. Nf3 {[%clk 0:03:00.6]} 4... dxc4 {[%clk 0:03:01.4]} 5. a4 {[%clk 0:02:43.1]}
5... Bf5 {[%clk 0:02:59.7]} 6. e3 {[%clk 0:02:31.8]} 6... e6 {[%clk 0:03:00.1]}
7. Bxc4 {[%clk 0:02:28.6]} 7... Bb4 {[%clk 0:03:00.9]} 8. O-O {[%clk 0:02:26.8]}
8... O-O {[%clk 0:03:01.4]} 9. Bd2 {[%clk 0:02:15.4]} 9... Nbd7 {[%clk
0:02:50.1]} 10. Na2 {[%clk 0:02:09.1]} 10... Bxd2 {[%clk 0:02:48.7]} 11. Nxd2
{[%clk 0:02:03.7]} 11... c5 {[%clk 0:02:43.1]} 12. Nf3 {[%clk 0:01:45.6]} 12...
Qc7 {[%clk 0:02:25.8]} 13. Bd3 {[%clk 0:01:37.7]} 13... Bg4 {[%clk 0:02:10.3]}
14. Rc1 {[%clk 0:01:34.5]} 14... Qd6 {[%clk 0:02:00.4]} 15. dxc5 {[%clk
0:01:22.2]} 15... Bxf3 {[%clk 0:01:59.7]} 16. Bxh7+ {[%clk 0:01:19.6]} 16...
Kxh7 {[%clk 0:01:44.6]} 17. Qxd6 {[%clk 0:01:20]} 17... Bd5 {[%clk 0:01:39.4]}
18. Nc3 {[%clk 0:01:16.6]} 18... Rfd8 {[%clk 0:01:30.7]} 19. Nxd5 {[%clk
0:01:14.4]} 19... Nxd5 {[%clk 0:01:30.5]} 20. Qg3 {[%clk 0:01:13.1]} 20... N7f6
{[%clk 0:01:29.5]} 21. Rfd1 {[%clk 0:01:09.8]} 21... Rac8 {[%clk 0:01:24.3]} 22.
Qh4+ {[%clk 0:01:05.4]} 22... Kg8 {[%clk 0:01:23.2]} 23. e4 {[%clk 0:01:04.3]}
23... Ne7 {[%clk 0:01:23.8]} 24. Rxd8+ {[%clk 0:01:03.1]} 24... Rxd8 {[%clk
0:01:25.6]} 25. Qf4 {[%clk 0:00:54.1]} 25... Ng6 {[%clk 0:01:20.3]} 26. Qc7
{[%clk 0:00:49.1]} 26... Rd7 {[%clk 0:01:21.2]} 27. Qc8+ {[%clk 0:00:47.4]}
27... Kh7 {[%clk 0:01:22.6]} 28. f3 {[%clk 0:00:43.3]} 28... Ne7 {[%clk
0:01:22.6]} 29. Qa8 {[%clk 0:00:40.3]} 29... a6 {[%clk 0:01:15.4]} 30. b4 {[%clk
0:00:34.1]} 30... Nc6 {[%clk 0:01:14.2]} 31. b5 {[%clk 0:00:32.6]} 31... Nd4
{[%clk 0:01:10.2]} 32. Kf2 {[%clk 0:00:21.8]} 32... axb5 {[%clk 0:01:10.1]} 33.
axb5 {[%clk 0:00:19.9]} 33... Nxb5 {[%clk 0:01:11.9]} 34. c6 {[%clk 0:00:19.7]}
34... bxc6 {[%clk 0:01:10.4]} 35. Qxc6 {[%clk 0:00:18.9]} 35... Nd4 {[%clk
0:01:09.6]} 36. Qc8 {[%clk 0:00:17]} 1/2-1/2

[Event "*** Titled Tuesday Blitz"]
[Site "Chess.com"]
[Date "2018.01.02"]
[Round "2"]
[White "goingin33"]
[Black "AndrewDGreen"]
[Result "1-0"]
[WhiteElo "2239"]
[BlackElo "2097"]
[TimeControl "180+2"]
[EndTime "13:21:24 PST"]
[Termination "goingin33 won by resignation"]

1. Nf3 {[%clk 0:03:01.9]} 1... g6 {[%clk 0:02:59.7]} 2. e4 {[%clk 0:03:01.4]}
2... Bg7 {[%clk 0:02:59.1]} 3. d4 {[%clk 0:03:02.4]} 3... c5 {[%clk 0:03:00.3]}
4. dxc5 {[%clk 0:02:54.8]} 4... Na6 {[%clk 0:02:53.9]} 5. Bxa6 {[%clk 0:02:44]}
5... bxa6 {[%clk 0:02:51.1]} 6. c3 {[%clk 0:02:45.2]} 6... Bb7 {[%clk
0:02:48.6]} 7. Qd3 {[%clk 0:02:31.9]} 7... a5 {[%clk 0:02:45]} 8. Be3 {[%clk
0:02:29.9]} 8... Nf6 {[%clk 0:02:39.7]} 9. Nbd2 {[%clk 0:02:30.7]} 9... O-O
{[%clk 0:02:37]} 10. O-O {[%clk 0:02:26.7]} 10... Qc7 {[%clk 0:02:36.7]} 11. h3
{[%clk 0:02:22.9]} 11... Qc6 {[%clk 0:02:37]} 12. Nd4 {[%clk 0:02:00.1]} 12...
Qa6 {[%clk 0:02:16.6]} 13. Qxa6 {[%clk 0:01:59.4]} 13... Bxa6 {[%clk 0:02:18.5]}
14. Rfe1 {[%clk 0:01:59.2]} 14... Rab8 {[%clk 0:02:14.4]} 15. b3 {[%clk
0:01:53.8]} 15... Rfc8 {[%clk 0:02:04.7]} 16. c4 {[%clk 0:01:37.9]} 16... a4
{[%clk 0:01:39.2]} 17. e5 {[%clk 0:01:29.9]} 17... Ne8 {[%clk 0:01:36.3]} 18.
N4f3 {[%clk 0:01:31]} 18... Nc7 {[%clk 0:01:32]} 19. Rab1 {[%clk 0:01:23.3]}
19... Ne6 {[%clk 0:01:22.7]} 20. b4 {[%clk 0:01:17.5]} 20... Bb7 {[%clk
0:01:16.7]} 21. a3 {[%clk 0:01:15.5]} 21... a5 {[%clk 0:01:14.7]} 22. Kf1 {[%clk
0:00:51.9]} 22... Ba6 {[%clk 0:01:11.1]} 23. b5 {[%clk 0:00:50.8]} 23... Bb7
{[%clk 0:01:10.1]} 24. b6 {[%clk 0:00:47.4]} 24... Nxc5 {[%clk 0:01:09]} 25. Rb5
{[%clk 0:00:49]} 25... Nd3 {[%clk 0:01:04]} 26. Reb1 {[%clk 0:00:48.5]} 26...
Bxf3 {[%clk 0:00:57.5]} 27. Nxf3 {[%clk 0:00:49.5]} 27... Rxc4 {[%clk
0:00:57.3]} 28. Rxa5 {[%clk 0:00:50.7]} 28... Rcc8 {[%clk 0:00:18.7]} 29. b7
{[%clk 0:00:48.9]} 29... Rd8 {[%clk 0:00:20]} 30. Ba7 {[%clk 0:00:49.3]} 30...
Nf4 {[%clk 0:00:19]} 31. Bxb8 {[%clk 0:00:48.8]} 31... Rxb8 {[%clk 0:00:20]} 32.
Ra8 {[%clk 0:00:50]} 1-0

[Event "*** Titled Tuesday Blitz"]
[Site "Chess.com"]
[Date "2018.01.02"]
[Round "2"]
[White "nicegg"]
[Black "VeraNebolsina"]
[Result "0-1"]
[WhiteElo "1990"]
[BlackElo "2054"]
[TimeControl "180+2"]
[EndTime "13:21:34 PST"]
[Termination "VeraNebolsina won by checkmate"]

1. e4 {[%clk 0:03:01.9]} 1... c5 {[%clk 0:02:58.9]} 2. Qh5 {[%clk 0:03:02.3]}
2... e6 {[%clk 0:02:52.6]} 3. f4 {[%clk 0:03:03.2]} 3... Nf6 {[%clk 0:02:48.8]}
4. Qf3 {[%clk 0:03:04.2]} 4... Nc6 {[%clk 0:02:48.2]} 5. c3 {[%clk 0:03:05.4]}
5... b6 {[%clk 0:02:25.6]} 6. d3 {[%clk 0:03:06]} 6... Bb7 {[%clk 0:02:26.1]} 7.
g4 {[%clk 0:03:07.1]} 7... d5 {[%clk 0:02:09.6]} 8. Nd2 {[%clk 0:03:05.9]} 8...
c4 {[%clk 0:01:53]} 9. g5 {[%clk 0:02:58.8]} 9... dxe4 {[%clk 0:01:45.5]} 10.
dxe4 {[%clk 0:02:57.1]} 10... Nd7 {[%clk 0:01:43.2]} 11. Bxc4 {[%clk 0:02:56.2]}
11... Qc7 {[%clk 0:01:25.6]} 12. Be2 {[%clk 0:02:47]} 12... O-O-O {[%clk
0:01:26.1]} 13. h4 {[%clk 0:02:45.3]} 13... Bd6 {[%clk 0:01:25.2]} 14. Nh3
{[%clk 0:02:44]} 14... h6 {[%clk 0:01:17.5]} 15. Nc4 {[%clk 0:02:36.6]} 15...
Be7 {[%clk 0:01:13.7]} 16. Be3 {[%clk 0:02:30.5]} 16... hxg5 {[%clk 0:01:04.8]}
17. Nxg5 {[%clk 0:02:28.5]} 17... Bxg5 {[%clk 0:00:58.1]} 18. hxg5 {[%clk
0:02:26.4]} 18... Rxh1+ {[%clk 0:00:54]} 19. Qxh1 {[%clk 0:02:25.7]} 19... b5
{[%clk 0:00:55.2]} 20. Nd2 {[%clk 0:02:21.3]} 20... Qa5 {[%clk 0:00:52.5]} 21.
Qh7 {[%clk 0:02:13.9]} 21... Ne7 {[%clk 0:00:35.4]} 22. Qxg7 {[%clk 0:02:03.8]}
22... Bxe4 {[%clk 0:00:35.9]} 23. Nxe4 {[%clk 0:01:52]} 23... Nf5 {[%clk
0:00:36.6]} 24. Qxf7 {[%clk 0:01:31.6]} 24... Nxe3 {[%clk 0:00:37.1]} 25. Kf2
{[%clk 0:01:20.3]} 25... Qb6 {[%clk 0:00:37.6]} 26. Kf3 {[%clk 0:01:19.7]} 26...
Rf8 {[%clk 0:00:28.8]} 27. Qe7 {[%clk 0:01:11.5]} 27... Rxf4+ {[%clk 0:00:24.9]}
28. Kxf4 {[%clk 0:01:02.1]} 28... Nd5+ {[%clk 0:00:25.8]} 29. Kg4 {[%clk
0:00:59]} 29... Ne5+ {[%clk 0:00:21.1]} 30. Kh5 {[%clk 0:00:56.8]} 30... Nxe7
{[%clk 0:00:21.5]} 31. Rd1 {[%clk 0:00:56.6]} 31... Nd5 {[%clk 0:00:22.1]} 32.
Bxb5 {[%clk 0:00:51]} 32... Qe3 {[%clk 0:00:20]} 33. Nd6+ {[%clk 0:00:44.8]}
33... Kb8 {[%clk 0:00:19.5]} 34. Rf1 {[%clk 0:00:39.6]} 34... Qh3# {[%clk
0:00:19.9]} 0-1

[Event "*** Titled Tuesday Blitz"]
[Site "Chess.com"]
[Date "2018.01.02"]
[Round "2"]
[White "ramses135"]
[Black "rasool78"]
[Result "1-0"]
[WhiteElo "2367"]
[BlackElo "2210"]
[TimeControl "180+2"]
[EndTime "13:21:55 PST"]
[Termination "ramses135 won on time"]

1. e4 {[%clk 0:03:01.9]} 1... g6 {[%clk 0:03:00.1]} 2. d4 {[%clk 0:03:02.7]}
2... Bg7 {[%clk 0:03:01.5]} 3. Nc3 {[%clk 0:03:04.6]} 3... c5 {[%clk 0:03:02.9]}
4. Be3 {[%clk 0:03:04.8]} 4... cxd4 {[%clk 0:03:03]} 5. Bxd4 {[%clk 0:03:06.7]}
5... Nf6 {[%clk 0:03:04.4]} 6. e5 {[%clk 0:03:08.2]} 6... Nh5 {[%clk 0:03:04.6]}
7. Nge2 {[%clk 0:03:07.5]} 7... f6 {[%clk 0:03:00.8]} 8. Ng3 {[%clk 0:02:57.4]}
8... Nxg3 {[%clk 0:02:50.9]} 9. exf6 {[%clk 0:02:57.7]} 9... Nxh1 {[%clk
0:02:08.3]} 10. fxg7 {[%clk 0:02:58.1]} 10... Rg8 {[%clk 0:02:07.4]} 11. Bc4
{[%clk 0:02:59]} 11... e6 {[%clk 0:02:03.3]} 12. Ne4 {[%clk 0:02:58.2]} 12... d5
{[%clk 0:01:52.1]} 13. Nf6+ {[%clk 0:02:25.5]} 13... Kf7 {[%clk 0:01:48.7]} 14.
Qf3 {[%clk 0:02:19]} 14... Rxg7 {[%clk 0:01:15.8]} 15. Nxh7+ {[%clk 0:01:37.2]}
15... Kg8 {[%clk 0:00:54.3]} 16. Nf6+ {[%clk 0:01:37.6]} 16... Kf8 {[%clk
0:00:50.2]} 17. Bc5+ {[%clk 0:01:06.7]} 17... Kf7 {[%clk 0:00:40.3]} 18. Nxd5+
{[%clk 0:00:48.4]} 18... Kg8 {[%clk 0:00:38.7]} 19. Nf6+ {[%clk 0:00:48.5]}
19... Kf7 {[%clk 0:00:39]} 20. Ne4+ {[%clk 0:00:31.8]} 20... Kg8 {[%clk
0:00:36.8]} 21. Rd1 {[%clk 0:00:31.4]} 21... Qh4 {[%clk 0:00:15.3]} 22. Qf8+
{[%clk 0:00:22.7]} 22... Kh7 {[%clk 0:00:15.5]} 23. Nf6+ {[%clk 0:00:24.6]}
23... Kh6 {[%clk 0:00:11.6]} 24. Qh8+ {[%clk 0:00:20]} 24... Kg5 {[%clk
0:00:12.5]} 25. Be3+ {[%clk 0:00:17.5]} 25... Kxf6 {[%clk 0:00:10.7]} 26. Qxh4+
{[%clk 0:00:18.4]} 26... g5 {[%clk 0:00:12.2]} 27. Qh6+ {[%clk 0:00:19.1]} 27...
Rg6 {[%clk 0:00:13.3]} 28. Qf8+ {[%clk 0:00:20]} 1-0

[Event "*** Titled Tuesday Blitz"]
[Site "Chess.com"]
[Date "2018.01.02"]
[Round "2"]
[White "jposthuma"]
[Black "Vamostodorecto"]
[Result "0-1"]
[WhiteElo "2348"]
[BlackElo "2367"]
[TimeControl "180+2"]
[EndTime "13:22:01 PST"]
[Termination "Vamostodorecto won on time"]

1. d4 {[%clk 0:03:01.9]} 1... Nf6 {[%clk 0:02:59.5]} 2. c4 {[%clk 0:03:02.3]}
2... g6 {[%clk 0:03:01.1]} 3. Nc3 {[%clk 0:03:02.7]} 3... d5 {[%clk 0:03:02.6]}
4. cxd5 {[%clk 0:03:03.3]} 4... Nxd5 {[%clk 0:03:04.5]} 5. Na4 {[%clk
0:03:04.6]} 5... Bg7 {[%clk 0:03:03.5]} 6. e4 {[%clk 0:03:05.1]} 6... Nb6 {[%clk
0:03:05.1]} 7. Be3 {[%clk 0:03:06.1]} 7... e5 {[%clk 0:02:58.3]} 8. d5 {[%clk
0:02:31.3]} 8... O-O {[%clk 0:02:57.8]} 9. Bd3 {[%clk 0:02:14.2]} 9... f5 {[%clk
0:02:49.8]} 10. Nxb6 {[%clk 0:02:12.2]} 10... axb6 {[%clk 0:02:49.6]} 11. Nf3
{[%clk 0:02:01.9]} 11... f4 {[%clk 0:02:37.1]} 12. Bd2 {[%clk 0:02:02.3]} 12...
Nd7 {[%clk 0:02:32.9]} 13. O-O {[%clk 0:01:50.6]} 13... Nc5 {[%clk 0:02:32]} 14.
Bc3 {[%clk 0:01:47]} 14... Qe8 {[%clk 0:02:26.1]} 15. Bc2 {[%clk 0:01:13.6]}
15... h6 {[%clk 0:02:25.5]} 16. d6 {[%clk 0:00:55.8]} 16... c6 {[%clk
0:02:19.2]} 17. b4 {[%clk 0:00:56.2]} 17... Nd7 {[%clk 0:02:11.7]} 18. Bb3+
{[%clk 0:00:48.6]} 18... Kh7 {[%clk 0:02:12]} 19. Nd2 {[%clk 0:00:40.3]} 19...
g5 {[%clk 0:02:08.4]} 20. b5 {[%clk 0:00:27.9]} 20... Nc5 {[%clk 0:02:03.3]} 21.
Qc2 {[%clk 0:00:21]} 21... cxb5 {[%clk 0:01:06.4]} 22. Bd5 {[%clk 0:00:19.7]}
22... g4 {[%clk 0:01:06]} 23. Rab1 {[%clk 0:00:17.9]} 23... Be6 {[%clk
0:01:05.8]} 24. Bxe6 {[%clk 0:00:16.7]} 24... Qxe6 {[%clk 0:01:07]} 25. Rxb5
{[%clk 0:00:15.6]} 25... Rxa2 {[%clk 0:01:07.8]} 26. Qb1 {[%clk 0:00:11.7]}
26... f3 {[%clk 0:01:06.4]} 27. g3 {[%clk 0:00:06.7]} 27... Ra6 {[%clk
0:00:58.5]} 28. Rxb6 {[%clk 0:00:06.4]} 28... Qg6 {[%clk 0:00:53.2]} 29. h4
{[%clk 0:00:04.5]} 29... gxh3 {[%clk 0:00:53.5]} 30. Kh2 {[%clk 0:00:05.4]}
30... Rd8 {[%clk 0:00:44.7]} 31. Nc4 {[%clk 0:00:04.7]} 31... Nxe4 {[%clk
0:00:39.3]} 32. Bxe5 {[%clk 0:00:04.9]} 32... Rxb6 {[%clk 0:00:38.1]} 33. Qxb6
{[%clk 0:00:04.9]} 33... Rd7 {[%clk 0:00:36.7]} 0-1